Cogmind - Beta 15 @@@ ROGUE MODE // 2025.10.07 @ 10:13:59 Player: Zon Result: Destroyed by H-61 Shepherd with Heavy Assault Cannon Performance ------------- Evolutions (2) 1000 Regions Visited (5) 1000 Robots Destroyed (41) 205 Value Destroyed (963) 963 Prototype IDs (26) 520 Alien Tech Used (0) 0 Bonus (300) 300 TOTAL SCORE: 3988 Bonus ------- Aligned with FarCom 300 Cogmind --------- Core Integrity 0/550 Matter 184/300 Energy 100/100 System Corruption 0% Temperature Danger (484) Movement Core (50) Location -8/Materials Parts ------- > --- POWER (1) -------- (None) > --- PROPULSION (4) --- (None) > --- UTILITY (3) ------ (None) > --- WEAPON (3) ------- (None) > --- INVENTORY (5) ---- Improved Deuterium Engine Aluminum Leg Aluminum Leg High-capacity Battery (250) Gauss Cannon Peak State ------------ > --- POWER ------------ Improved Deuterium Engine > --- PROPULSION ------- Light Treads Light Treads > --- UTILITY ---------- Large Storage Unit Modified TNC Hardened Medium Armor Plating > --- WEAPON ----------- Advanced Beam Cannon Gauss Cannon Gauss Cannon > --- INVENTORY -------- Light Nuclear Core Improved Deuterium Engine Improved Deuterium Engine Improved Deuterium Engine Light Treads Aluminum Leg Aluminum Leg Medium Storage Unit Large Storage Unit High-capacity Battery Field Laser Gauss Cannon Gauss Cannon [Rating: 30] Favorites ----------- Power Ion Engine Engine Ion Engine Power Core Light Nuclear Core Propulsion Aluminum Leg Treads Light Treads Leg Aluminum Leg Utility Modified TNC Device Improved Terrain Scanner Storage Small Storage Unit Processor Modified TNC Protection Hardened Medium Armor Plating Weapon Small Laser Energy Gun Small Laser Energy Cannon Advanced Beam Cannon Ballistic Gun Light Assault Rifle Ballistic Cannon Gauss Cannon Special Weapon Mining Laser Build | -11 -10 -10 -10 -9 -8 ------- Run | Yrd Mat Min Exi Min Mat Slots Evolved 4 | . . . . . 4 Power . | . . . . . . Propulsion 2 | . . . . . 2 Utility 1 | . . . . . 1 Weapon 1 | . . . . . 1 Parts Attached 40 | 8 . 6 1 2 23 Power 8 | 1 . 1 . 1 5 Engine 7 | 1 . 1 . 1 4 Core 1 | . . . . . 1 Reactor . | . . . . . . Propulsion 9 | 2 . 3 . . 4 Treads 4 | . . . . . 4 Leg 5 | 2 . 3 . . . Wheel . | . . . . . . Hover . | . . . . . . Flight . | . . . . . . Utility 10 | 3 . . 1 . 6 Device 3 | 2 . . . . 1 Storage 3 | 1 . . . . 2 Processor 1 | . . . 1 . . Hackware . | . . . . . . Protection 3 | . . . . . 3 Artifact . | . . . . . . Weapon 13 | 2 . 2 . 1 8 Energy Gun 7 | 2 . 2 . . 3 Energy Cannon 1 | . . . . . 1 Ballistic Gun 2 | . . . . 1 1 Ballistic Cannon 2 | . . . . . 2 Launcher . | . . . . . . Special Weapon 1 | . . . . . 1 Impact Weapon . | . . . . . . Slashing Weapon . | . . . . . . Piercing Weapon . | . . . . . . Special Melee Weapon . | . . . . . . Unidentified Prototypes 2 | . . . 1 . 1 Parts Lost 11 | . . 2 . 3 6 Power 1 | . . . . 1 . Propulsion 5 | . . 1 . 1 3 Utility 1 | . . . . . 1 Weapon 4 | . . 1 . 1 2 Highest Loss Streak 3 | . . 1 . 3 3 To Critical Strikes . | . . . . . . Average Backups 9 | 4 7 7 8 6 10 Power 2 | . 1 1 1 . 3 Propulsion 3 | 2 4 4 3 3 2 Utility 2 | . . 1 1 2 3 Weapon 1 | 1 2 1 2 1 1 Tool/Special . | . . . . . . Unused Backups 14 | . 1 1 1 . 11 Power 6 | . . 1 . . 5 Propulsion 3 | . 1 . 1 . 1 Utility 2 | . . . . . 2 Weapon 3 | . . . . . 3 Tool/Special . | . . . . . . Average Slot Usage (%) 89 | . 100 99 100 90 78 Engine 9 | . 14 14 14 14 5 Core 1 | . . . . . 3 Treads 8 | . . . . . 18 Leg 14 | . 28 27 28 21 . Device 4 | . 14 14 2 . . Storage 11 | . 14 14 14 14 9 Processor 7 | . . . 11 14 8 Protection 3 | . . . . . 7 Energy Gun 17 | . 28 27 28 19 6 Energy Cannon 2 | . . . . . 5 Ballistic Gun 3 | . . . . 7 6 Ballistic Cannon 3 | . . . . . 6 Peak Build Rating 30 | 9 9 9 13 12 30 Average Rating 16 | 5 9 8 12 11 23 On Entrance 8 | . 9 9 9 12 11 Naked Turns 3 | . . . . . 3 Heaviest Build 56 | 14 14 14 13 12 56 Greatest Support 60 | 20 20 20 20 20 60 Greatest Overweight (x) 9 | . . 1 . . 9 Average Overweight (x) . | . . . . . . Largest Inventory Capacity 15 | 8 8 8 8 8 15 Average Capacity 11 | 7 8 8 8 8 14 Most Carried 15 | 8 8 8 8 8 15 Average Carried 9 | 5 7 7 7 6 10 Final Capacity 8 | 8 8 8 8 8 5 Final Carried 8 | 7 8 8 8 6 5 Class Distribution -------------------- 42% | Mutant 27% | Skirmisher 15% | Scavenger-Skirmisher 14% | Scavenger-Mutant Dominant Class ---------------- Mutant | -10/Materials Scavenger-Mutant | -10/Mines Mutant | -10/Exiles Scavenger-Mutant | -9/Mines Skirmisher | -8/Materials Resources | -11 -10 -10 -10 -9 -8 ----------- Run | Yrd Mat Min Exi Min Mat Matter Collected 849 | 280 . 70 . 13 486 Remotely 45 | 45 . . . . . Salvage Created 1390 | 146 94 393 . . 757 Parts 79 | 11 5 27 . . 36 Haulers Intercepted 2 | . . . . . 2 Recyclers Shooed 3 | . . 2 . . 1 Parts Field Recycled . | . . . . . . Retrieved Matter . | . . . . . . Parts Self-Destructed . | . . . . . . Prevented . | . . . . . . Kills | -11 -10 -10 -10 -9 -8 ------- Run | Yrd Mat Min Exi Min Mat Combat Hostiles Destroyed 26 | . 2 12 . . 12 Guns 19 | . 2 12 . . 5 Cannons 7 | . . . . . 7 Classes Destroyed 10 | 2 1 2 . . 5 Worker 3 | . . 1 . . 2 Builder 2 | . . . . . 2 Tunneler 4 | 3 . 1 . . . Hauler 2 | . . . . . 2 Recycler 2 | 1 . . . . 1 Watcher 2 | . . . . . 2 Swarmer 9 | . . 6 . . 3 Grunt 13 | . 2 6 . . 5 Sentry 3 | . . . . . 3 Hunter 1 | . . . . . 1 Best Kill Streak 6 | 2 2 4 . . 6 Combat Bots Only 4 | . 2 3 . . 4 Max Kills in Single Turn 1 | 1 1 1 . . 1 Gunslinging . | . . . . . . Exploded . | . . . . . . Melee . | . . . . . . Uniques/NPCs Destroyed . | . . . . . . Combat | -11 -10 -10 -10 -9 -8 -------- Run | Yrd Mat Min Exi Min Mat Hostile Shots Fired 185 | . 10 60 . 6 109 Missed 35 | . 2 12 . 3 18 Hits 150 | . 8 48 . 3 91 Melee 2 | . . . . 2 . Projectile 148 | . 8 48 . 1 91 AOE 2 | . . . . 2 . Critical Strikes 8 | . . . . . 8 Damage Taken 2491 | 10 91 505 . 136 1749 Core 734 | . 46 100 . 23 565 Absorbed by Shields . | . . . . . . Redirected to Shielding 21 | . . . . . 21 Core Remaining (%) 66 | 100 . . . 32 . Volleys Fired 132 | 6 9 48 . 1 68 Largest 3 | 2 2 2 . 2 3 Hottest 171 | 80 80 80 . 60 171 Shots Fired 300 | 12 17 92 . 2 177 Gun 239 | 12 17 92 . 2 116 Cannon 59 | . . . . . 59 Launcher . | . . . . . . Special 2 | . . . . . 2 Kinetic 95 | . . . . 1 94 Thermal 183 | 6 8 85 . 1 83 Explosive . | . . . . . . Electromagnetic 22 | 6 9 7 . . . Robot Hit Streak 12 | 3 5 12 . 6 9 Robot Miss Streak 6 | 3 1 3 . . 6 Penetration Max 1 | . . . . . 1 Secondary Targets 4 | . 1 2 . . 1 Max Gunslinging Chain 1 | . 1 1 . . 1 Shots Hit Robots 178 | 6 12 61 . 2 97 Core Hits 73 | 5 4 24 . 1 39 Critical Kills . | . . . . . . Critical Parts Destroyed 1 | . . . . . 1 Critical Strikes 4 | . . 1 . . 3 Burn 1 | . . . . . 1 Destroy 1 | . . . . . 1 Blast 1 | . . . . . 1 Corrupt 1 | . . 1 . . . Melee Attacks . | . . . . . . Impact . | . . . . . . Slashing . | . . . . . . Piercing . | . . . . . . Sneak Attacks . | . . . . . . Combat Hostiles . | . . . . . . Follow-up Attacks . | . . . . . . Damage Inflicted 2410 | 94 141 694 . 25 1456 Guns 1695 | 72 141 694 . 18 770 Cannons 662 | . . . . . 662 Explosions 22 | 22 . . . . . Melee . | . . . . . . Ramming 7 | . . . . 7 . Kinetic 766 | . . . . 8 758 Thermal 1457 | 56 76 617 . 10 698 Explosive . | . . . . . . Electromagnetic 180 | 38 65 77 . . . Impact . | . . . . . . Slashing . | . . . . . . Piercing . | . . . . . . Highest Corruption . | . . . . . . Average Corruption . | . . . . . . Corruption Purged . | . . . . . . Corruption Blocked . | . . . . . . Overload Shots . | . . . . . . Overflow Damage 3 | . . . . . 3 Projectiles 3 | . . . . . 3 Explosions . | . . . . . . Melee . | . . . . . . Knockbacks 2 | . . . . . 2 Impact . | . . . . . . Kinetic 2 | . . . . . 2 Secondary . | . . . . . . Self-Inflicted Damage 10 | 10 . . . . . Shots 1 | 1 . . . . . Rammed . | . . . . . . Targets Rammed 1 | . . . . 1 . Kicked 1 | . . . . 1 . Crushed . | . . . . . . Highest Temperature 627 | 36 120 180 . 20 627 Average Temperature 126 | 19 49 67 . 15 175 Received Heat Transfer 624 | . 48 171 . . 405 Effects 22 | . . . . . 22 Shutdowns 5 | . . . . . 5 Energy Bleed 2 | . . . . . 2 Matter Decay 1 | . . . . . 1 Short Circuit 3 | . . . . . 3 Damage (minor) 3 | . . . . . 3 Damage (major) 5 | . . . . . 5 Damage (core) 3 | . . . . . 3 Siege Activations . | . . . . . . Martial Activations . | . . . . . . Shielding Activations . | . . . . . . Robots Disrupted . | . . . . . . Combat Hostiles . | . . . . . . Robots Corrupted . | . . . . . . Combat Hostiles . | . . . . . . Parts Fried . | . . . . . . Impact Corruptions . | . . . . . . Robots Melted . | . . . . . . Combat Hostiles . | . . . . . . Parts Melted 3 | . . 1 . . 2 Heat Transferred 3246 | 75 175 1425 . 25 1546 Parts Sabotaged . | . . . . . . Parts Stolen . | . . . . . . Parts Stripped . | . . . . . . Power Chain Reactions 1 | 1 . . . . . Alert | -11 -10 -10 -10 -9 -8 ------- Run | Yrd Mat Min Exi Min Mat Maximum Alert Level . | . . . . . . Low Security (%) 100 | 100 100 100 . 100 100 Level 1 . | . . . . . . Level 2 . | . . . . . . Level 3 . | . . . . . . Level 4 . | . . . . . . Level 5 . | . . . . . . High Security . | . . . . . . Max Security . | . . . . . . Peak Influence 191 | 10 55 156 . . 191 Initial 1 | . . 1 . . . Average 32 | 1 8 103 . . 25 Influence Increases 853 | 20 80 300 . . 453 Destroy 0b10 Robot/C 520 | . 40 240 . . 240 Destroy 0b10 Robot/NC 75 | 20 . 10 . . 45 Destroy Leader 128 | . 10 50 . . 68 Successful Hack 32 | . . . . . 32 Disable Machine 45 | . 15 . . . 30 Destroy Structure 23 | . . . . . 23 Lose Combat Pursuer 30 | . 15 . . . 15 Influence Decreases 815 | 20 75 184 121 . 415 Entered New Map 125 | . . 4 121 . . Time Decay 470 | 20 75 160 . . 215 Lost Part 70 | . . 20 . . 50 Purge Threat 150 | . . . . . 150 Squads Dispatched 3 | . 1 . . . 2 Investigation . | . . . . . . Extermination . | . . . . . . Reinforcement 3 | . 1 . . . 2 Assault . | . . . . . . Garrison . | . . . . . . Intercept . | . . . . . . Searches Triggered . | . . . . . . Construction Impeded . | . . . . . . Haulers Reinforced . | . . . . . . Active Scanning Responses . | . . . . . . Cargo Convoy Interrupts . | . . . . . . Stealth | -11 -10 -10 -10 -9 -8 --------- Run | Yrd Mat Min Exi Min Mat Distress Signals 4 | . . . . . 4 Communications Jammed . | . . . . . . Distress Signals . | . . . . . . Times Spotted 67 | . 8 12 . 22 25 Peak Tracking Total 11 | . 3 3 . 11 8 Tactical Retreats 3 | . 1 . . 1 1 Traps | -11 -10 -10 -10 -9 -8 ------- Run | Yrd Mat Min Exi Min Mat Traps Triggered 2 | . . . . . 2 Indirectly . | . . . . . . Trap Hack Attempts . | . . . . . . Triggered . | . . . . . . Disarmed . | . . . . . . Reprogrammed . | . . . . . . Reused . | . . . . . . Traps Extracted . | . . . . . . Installed . | . . . . . . Triggered . | . . . . . . Machines | -11 -10 -10 -10 -9 -8 ---------- Run | Yrd Mat Min Exi Min Mat Machines Disabled 3 | . 1 . . . 2 Max in Single Turn 1 | . 1 . . . 1 Machines Repaired . | . . . . . . Machines Dismantled . | . . . . . . Machines Sabotaged . | . . . . . . Overloaded Fab Kills . | . . . . . . Hacking | -11 -10 -10 -10 -9 -8 --------- Run | Yrd Mat Min Exi Min Mat Machines Accessed 7 | . 1 . 2 . 4 Terminals 4 | . 1 . . . 3 Fabricators . | . . . . . . Repair Stations . | . . . . . . Recycling Units . | . . . . . . Scanalyzers 1 | . . . . . 1 Garrison Access . | . . . . . . Total Hacks 18 | . 2 . 2 . 14 Successful 13 | . 1 . 2 . 10 Failed 5 | . 1 . . . 4 Catastrophic . | . . . . . . Database Lockouts . | . . . . . . Manual 1 | . . . 1 . . Terminals 12 | . 2 . . . 10 Fabricators . | . . . . . . Repair Stations . | . . . . . . Recycling Units . | . . . . . . Scanalyzers 4 | . . . . . 4 Garrison Access . | . . . . . . Terminal Hacks 11 | . 1 . 2 . 8 Record 1 | . . . 1 . . Prototype ID Bank 1 | . . . . . 1 Branch Access Points 1 | . . . . . 1 Emergency Access Points 1 | . . . . . 1 Alert Level 2 | . . . . . 2 Unreport Threat 1 | . . . . . 1 Locate Traps 2 | . 1 . . . 1 Investigation Status 1 | . . . . . 1 Proto ID Catalog 1 | . . . 1 . . Fabricator Hacks . | . . . . . . Repair Station Hacks . | . . . . . . Recycling Unit Hacks . | . . . . . . Scanalyzer 2 | . . . . . 2 Insert Component 1 | . . . . . 1 Analyze 1 | . . . . . 1 Garrison Access Hacks . | . . . . . . Unauthorized Hacks . | . . . . . . Terminals . | . . . . . . Fabricators . | . . . . . . Repair Stations . | . . . . . . Recycling Units . | . . . . . . Scanalyzers . | . . . . . . Garrison Access . | . . . . . . Data Cores Recovered . | . . . . . . Used . | . . . . . . Hacking Detections 5 | . 1 . . . 4 Full Trace Events . | . . . . . . Feedback Events . | . . . . . . Feedback Blocked . | . . . . . . Robot Schematics Acquired . | . . . . . . Robots Built . | . . . . . . Authchips . | . . . . . . Time . | . . . . . . Total Robot Build Rating . | . . . . . . Part Schematics Acquired . | . . . . . . Parts Built . | . . . . . . Authchips . | . . . . . . Time . | . . . . . . Total Part Build Rating . | . . . . . . Parts Repaired . | . . . . . . Time . | . . . . . . Parts Recycled . | . . . . . . Recycled Matter . | . . . . . . Retrieved Matter . | . . . . . . Retrieved Components . | . . . . . . Parts Scanalyzed 1 | . . . . . 1 Part Schematics Acquired . | . . . . . . Parts Damaged . | . . . . . . Bothacking | -11 -10 -10 -10 -9 -8 ------------ Run | Yrd Mat Min Exi Min Mat Used RIF Installer . | . . . . . . Robots Hacked . | . . . . . . Non-combat . | . . . . . . Combat . | . . . . . . Robot Hacks Applied . | . . . . . . Relay Couplers Released . | . . . . . . Fabnet Peak Effective % . | . . . . . . Robots Rewired . | . . . . . . Allies Hacked . | . . . . . . Hacks Repelled . | . . . . . . Allies | -11 -10 -10 -10 -9 -8 -------- Run | Yrd Mat Min Exi Min Mat Total Allies . | . . . . . . Largest Group . | . . . . . . Highest-Rated Group . | . . . . . . Highest-Rated Ally . | . . . . . . Total Orders . | . . . . . . Ally Attacks . | . . . . . . Total Damage . | . . . . . . Kills . | . . . . . . Allies Corrupted . | . . . . . . Allies Melted . | . . . . . . Intel | -11 -10 -10 -10 -9 -8 ------- Run | Yrd Mat Min Exi Min Mat Active Infowar (turns) 2702 | 25 325 338 706 68 1240 Terrain 827 | 25 325 338 139 . . T.N.C. 1875 | . . . 567 68 1240 Robot Analysis Total . | . . . . . . Derelict Logs Recovered . | . . . . . . Drone Launches . | . . . . . . Drone Recoveries . | . . . . . . Exploration | -11 -10 -10 -10 -9 -8 ------------- Run | Yrd Mat Min Exi Min Mat Turns Passed 2925 | 128 325 338 706 68 1360 Spaces Moved 1601 | 79 219 140 584 49 530 Core 14 | 8 . . . . 6 Treads 524 | . . . . . 524 Legs 1063 | 71 219 140 584 49 . Wheels . | . . . . . . Hover . | . . . . . . Flight . | . . . . . . Fastest Speed 50 | 50 120 120 120 120 50 Average Speed 141 | 112 120 121 120 120 185 Slowest Speed 500 | 120 120 190 120 120 500 Overloaded Moves . | . . . . . . Propulsion Burnouts . | . . . . . . Robots Hopped . | . . . . . . Potential Cave-ins . | . . . . . . Cave-ins Triggered . | . . . . . . Exploration Rate (%) 35 | 4 47 24 91 15 33 Regions Visited 5 Branch Regions 3 Pre-discovered Areas . | . . . . . . Known Exits Taken . | . . . . . . Unknown Exits Taken 5 | 1 1 1 1 1 . Scrap Searched . | . . . . . . Spaces Dug . | . . . . . . Terrain Destroyed 26 | 4 . . . . 22 Melee . | . . . . . . Projectile 22 | . . . . . 22 AOE 4 | 4 . . . . . Terrain Rammed . | . . . . . . Walls Destroyed . | . . . . . . Machines Disabled . | . . . . . . Actions | -11 -10 -10 -10 -9 -8 --------- Run | Yrd Mat Min Exi Min Mat Total 1998 | 105 264 219 589 56 765 Wait 156 | . 34 18 1 4 99 Move 1596 | 78 218 139 583 48 530 Hop . | . . . . . . Pick Up 36 | 12 2 2 2 . 18 Fast Attach 18 | 3 . 1 . . 14 Attach 15 | 5 . 1 . 2 7 Detach 1 | . . . . . 1 Swap 15 | . . 5 1 . 9 Drop 28 | 1 1 5 2 . 19 Fire 132 | 6 9 48 . 1 68 Melee . | . . . . . . Ram . | . . . . . . Kick 1 | . . . . 1 . Crush . | . . . . . . Escape Stasis . | . . . . . . Rewire . | . . . . . . Trap . | . . . . . . Miscellaneous . | . . . . . . Route ------- -11/Scrapyard -10/Materials (discovered 2 exits: [*Mat] / [*Min]) -10/Mines -10/Exiles (discovered 2 exits: [*Min x2]) -9/Mines -8/Materials History --------- Turn | Location | Event 4 | -11/Scrapyard | Discovered new exit (range 15) 129 | -11/Scrapyard | Entered Materials 228 | -10/Materials | Discovered new exit (range 15) 301 | -10/Materials | Build established: Mutant 433 | -10/Materials | Discovered new exit (range 7) 454 | -10/Materials | Entered Mines 674 | -10/Mines | Core integrity fell below 50% 786 | -10/Mines | Deemed a non-threat by the Exiles lab entrance 787 | -10/Mines | Discovered new exit (range 5) 792 | -10/Mines | Entered Exiles 809 | -10/Exiles | Discovered new exit (range 15) 822 | -10/Exiles | Met 8R-AWN 844 | -10/Exiles | Met EX-HEX 847 | -10/Exiles | Build established: Scavenger-Mutant 879 | -10/Exiles | Met EX-BIN 896 | -10/Exiles | Aligned with FarCom system 897 | -10/Exiles | Given EX-Vault access code 924 | -10/Exiles | Opened EX-Vault 930 | -10/Exiles | Found Prototype Processor 931 | -10/Exiles | Identified Modified TNC 974 | -10/Exiles | Warned to stay clear of 0b10 Research branches 1007 | -10/Exiles | Met EX-DEC 1045 | -10/Exiles | Visited The Gauntlet 1213 | -10/Exiles | Discovered new exit (range 14) 1237 | -10/Exiles | Build established: Mutant 1498 | -10/Exiles | Left Exiles lab with Modified TNC 1498 | -10/Exiles | Entered Mines 1498 | -9/Mines | Discovered new exit (range 16) 1508 | -9/Mines | Assembled infested the area 1556 | -9/Mines | Lost 3 parts (1p1n1w) 1566 | -9/Mines | Entered Materials 1566 | -8/Materials | Evolved 4 slots: Propulsion x2, Utility x1, Weapon x1 2367 | -8/Materials | Build established: Skirmisher 2810 | -8/Materials | Core integrity fell below 50% 2922 | -8/Materials | Core integrity fell below 20% 2923 | -8/Materials | Released all parts (7) 2926 | -8/Materials | Destroyed by H-61 Shepherd with Heavy Assault Cannon Last Messages --------------- 02919_ Power failure, Imp. Deuterium Engine shutdown. 02920_ Penetrated by Slug. 02920_ Lgt. Treads destroyed. 02920_ R-06 Scavenger collects Particle Gun. 02921_ Penetrated by Slug. 02922_ Overheating: Core damaged (-82). 02922_ Component Analysis Suite destroyed. 02922_ Critical hit (Blast). 02923_ Penetrated by Slug. 02923_ Released Lgt. Treads. 02923_ Released Imp. Deuterium Engine. 02923_ Released Gauss Cannon. 02923_ Released Adv. Beam Cannon. 02923_ Released Lrg. Storage Unit. 02923_ Released Field Laser. 02923_ Released Hrd. Medium Armor Plating. 02924_ Penetrated by Slug. 02924_ M-13 Machinist repairs R-06 Scavenger. 02926_ Penetrated by Slug. Map ----- +----------------------------------------------------+ | ?????????????????????????????????????????????????? | | ?????????????????????????????????????????????????? | | ?????????????????????????????????????????????????? | | ?????????????????????????????????????????????????? | | ?????????????????????????????????????????????????? | | ?????????????????????????????????????????????????? | | ?????????????????????????????????????????????????? | | ?????????????????????????????????????????????????? | | ?????????????????????????????????????????????????? | | ?????????????????????????????????????????????????? | | ?????????????????????????????????????????????????? | | ?????????????????????????????????????????????????? | | ?????????????????????????????????????????????????? | | ?????????????????????????????????????????????????? | | ??????????????????????????????#??????????????????? | | ??????????????????????????? #??????????????????? | | ??????????????????????????? #??????????????????? | | ??????????????????????????? #??????????????????? | | ??????????????????????????? #??????????????????? | | ????????????????########### #????? ???????????? | | ????????????????# # #???? #???????????? | | ????????????????#"" """ # #??? #???????????? | | ????????????????#"T """ # #??# #???????????? | | ????????????????#"" """ /H ###" #???????????? | | ????????????????# % ; % ^#???????????? | | ????????????????# @# =%! +???????????? | | ?????????????#### #% ????????????? | | ?????????#####"## ! ;xx #??????????????????? | | ?????????#"""""##########*] % #??????????????????? | | ???????###""T""##########*!| %#??????????????????? | | ???????# !]==*% #??????????????????? | | ???????# !%]%%! #??????????????????? | | ???????# !*[ %+????? ????????????? | | ???????# o #????? ???????????? | | ???????# """ #????? ???????????? | | ???????# """ #?????#+???????????? | | ???????# """ " *%m##????# #??????????? | | ???????# """" =%|r####??# #??????????? | | ???????# "" ! =####### ###????????? | | ?????? =%* # ???? | | ????? * % ! + ???? | | ????? %% % ! ! #????????? | | ?????#####+##"######"#"######+####### #????????? | | ????????? ? ?????## %!%* # !% = # #????????? | | ?????????""????????# ! ]# """]"T" + #????????? | | ???????????????????# ""???# """ ### #????????? | | ???????????????????# ""???# """ #?# #????????? | | ???????????????????# ?????# """ #?# #????????? | | ??????????????????????????# """ #?# #????????? | | ??????????????????????????# ! #?# #????????? | +----------------------------------------------------+ Best States ------------- Heat Dissipation 31 Energy Generation 16 Energy Capacity 290 Matter Stores 300 Matter Capacity 300 Sight Range 16 Terrain Scan Range 16 Terrain Scan Density 10 Armor Coverage 225 Power Shielding 66 Evasion (%) 55 Recoil Reduction 3 Item Schematics ----------------- None Robot Schematics ------------------ None Fabricated ------------ Nothing Repaired ---------- Nothing Alien Tech Used ----------------- None Achievements -------------- Safety First Slippery One Challenges ------------ None Game ------ Seed DirtyHypervelocitySpoofer Manual? 0 Play Time 00:34:24 Cumulative 34.8 hours Start 2025.10.07 @ 09:32:33 End 2025.10.07 @ 10:13:59 Sessions 3 Manual Loads 0 Difficulty Rogue Special Mode None Game No. 26 Rogue 26 Adventurer 0 Explorer 0 Win Type - Total 0 Types 0/0/0/0/0/0/0/0/0/0 Lore% 21 Gallery% 25 Achievement% 24 Wizard Run 0 Options --------- Layout 1 ASCII 0 Keyboard 0 Movement Mouse Keybinds 0 Fullscreen 2 Font 48/Smallcaps Map View 50x35 Zoom Use 0% Tactical HUD 1 Map Filters NONE Filters NONE Steam 1 RUN: bf4b4f0e-de9d-43d8-a65a-0b248f04de76